[Event "FIDE WCCC Open-12 2024"]
[Site "Montesilvano"]
[Date "2024.11.24"]
[Round "9.67"]
[White "Williams, Henry"]
[Black "Anuzis, Finas"]
[Result "0-1"]
[ECO "E91"]
[WhiteElo "1695"]
[BlackElo "1614"]
[Annotator "NA RC"]
[PlyCount "132"]
[EventDate "2024.11.18"]
[EventType "swiss"]
[EventCountry "ITA"]
[SourceTitle "playchess.com"]
[Source "ChessBase"]
[SourceQuality "1"]
[TimeControl "5400+30"]

1. c4 {[%emt 0:00:07]} a6 {[%emt 0:01:27]} 2. d4 {[%emt 0:00:44]} g6 {[%emt 0:00:00]} 3. e4 {[%emt 0:00:17]} Bg7 {[%emt 0:00:00]} 4. Nf3 {[%emt 0:00:23]} d6 {[%emt 0:01:59]} 5. Nc3 {[%emt 0:00:40]} Nf6 {[%emt 0:00:40]} 6. Be2 {[%emt 0:02:03]} O-O {[%emt 0:00:59]} 7. O-O {[%emt 0:01:17]} Nbd7 {[%emt 0:01:37]} 8. Bd2 {[%emt 0:03:06]} c5 {[%emt 0:02:37]} 9. d5 {[%emt 0:00:46]} Ng4 {[%emt 0:05:46]} 10. h3 {[%emt 0:00:50]} Nge5 {[%emt 0:01:45]} 11. Nxe5 {[%emt 0:01:27]} Nxe5 {[%emt 0:00:54]} 12. f4 {[%emt 0:00:36]} Nd7 {[%emt 0:01:07]} 13. Qc2 {[%emt 0:02:57]} Rb8 {[%emt 0:09:32]} 14. Qd3 {[%emt 0:05:38]} Nb6 {[%emt 0:07:20]} 15. a3 {[%emt 0:01:55]} Na8 {[%emt 0:01:26]} 16. Rab1 {[%emt 0:03:57]} Bd7 {[%emt 0:02:30]} 17. b4 {[%emt 0:04:20]} b6 {[%emt 0:02:06]} 18. b5 {[%emt 0:11:23]} axb5 {[%emt 0:06:22]} 19. cxb5 {[%emt 0:01:52]} Nc7 {[%emt 0:03:34]} 20. a4 {[%emt 0:05:57]} Ra8 {[%emt 0:04:42]} 21. Qc4 {[%emt 0:01:31]} e6 {[%emt 0:07:41]} 22. Bf3 {[%emt 0:03:37]} Rb8 {[%emt 0:05:19]} 23. Ne2 {[%emt 0:03:26]} exd5 {[%emt 0:02:30]} 24. exd5 {[%emt 0:01:52]} Bf5 {[%emt 0:00:56]} 25. Rbe1 {[%emt 0:03:53]} Re8 {[%emt 0:04:11]} 26. Ng3 {[%emt 0:02:20]} Qf6 {[%emt 0:04:47]} 27. Nxf5 {[%emt 0:02:37]} Qxf5 {[%emt 0:00:41]} 28. Be4 {[%emt 0:01:46]} Qf6 {[%emt 0:01:52]} 29. Bc1 {[%emt 0:14:42]} Qd4+ {[%emt 0:01:30]} 30. Qxd4 {[%emt 0:00:34]} Bxd4+ {[%emt 0:00:05]} 31. Kh1 {[%emt 0:00:32]} Bc3 {[%emt 0:10:24]} 32. Re3 {[%emt 0:00:58]} f5 {[%emt 0:00:45]} 33. Rxc3 {[%emt 0:00:30]} Rxe4 {[%emt 0:00:11]} 34. Rd1 {[%emt 0:00:35]} Rxa4 {[%emt 0:01:09]} 35. Rb3 {[%emt 0:01:13]} Re8 {[%emt 0:00:56]} 36. Bb2 {[%emt 0:00:23]} Ree4 {[%emt 0:01:54]} 37. Bc1 {[%emt 0:00:21]} Reb4 {[%emt 0:00:26]} 38. Rdd3 {[%emt 0:00:27]} Rxb3 {[%emt 0:00:39]} 39. Rxb3 {[%emt 0:00:05]} Kf7 {[%emt 0:00:44]} 40. Kh2 {[%emt 0:00:25]} Nxd5 {[%emt 0:00:31]} 41. Bd2 {[%emt 0:00:36]} Nxf4 {[%emt 0:00:55]} 42. Bxf4 {[%emt 0:00:10]} Rxf4 {[%emt 0:00:11]} 43. Rd3 {[%emt 0:00:13]} Ke6 {[%emt 0:00:11]} 44. Re3+ {[%emt 0:00:11]} Re4 {[%emt 0:00:14]} 45. Ra3 {[%emt 0:00:14]} Rb4 {[%emt 0:00:28]} 46. Ra2 {[%emt 0:00:17]} Rxb5 {[%emt 0:00:19]} 47. Re2+ {[%emt 0:00:04]} Kd7 {[%emt 0:00:16]} 48. Ra2 {[%emt 0:00:09]} Ra5 {[%emt 0:00:14]} 49. Rb2 {[%emt 0:00:14]} b5 {[%emt 0:00:08]} 50. Kg3 {[%emt 0:00:14]} Ke6 {[%emt 0:01:44]} 51. Re2+ {[%emt 0:00:12]} Kf7 {[%emt 0:00:17]} 52. Kf4 {[%emt 0:00:10]} h6 {[%emt 0:00:32]} 53. Rd2 {[%emt 0:00:10]} Ra6 {[%emt 0:00:22]} 54. Rb2 {[%emt 0:00:11]} Rb6 {[%emt 0:00:16]} 55. Rd2 {[%emt 0:00:06]} b4 {[%emt 0:00:16]} 56. g4 {[%emt 0:00:27]} b3 {[%emt 0:01:06]} 57. Rd1 {[%emt 0:00:21]} b2 {[%emt 0:00:18]} 58. Rb1 {[%emt 0:00:18]} fxg4 {[%emt 0:00:24]} 59. Kxg4 {[%emt 0:00:04]} c4 {[%emt 0:00:13]} 60. Rf1+ {[%emt 0:00:05]} Kg7 {[%emt 0:00:16]} 61. h4 {[%emt 0:00:18]} b1=Q {[%emt 0:00:35]} 62. Rg1 {[%emt 0:00:17]} Qxg1+ {[%emt 0:00:16]} 63. Kf4 {[%emt 0:00:06]} Qd4+ {[%emt 0:00:29]} 64. Kg3 {[%emt 0:00:05]} Rb3+ {[%emt 0:00:10]} 65. Kh2 {[%emt 0:00:05]} Qd2+ {[%emt 0:00:31]} 66. Kg1 {[%emt 0:01:16]} Rb1# {[%emt 0:00:12]} 0-1